fUSD/lending_fUSD_20241225
["ID","MTS","AMOUNT","RATE_DAILY","PERIOD"]
[346581646,1735113432798,-162.36369257,9.794e-05,2]
[346581647,1735113432819,-500.0,9.794e-05,2]
[346581648,1735113432839,-1746.06,9.794e-05,2]
[346581649,1735113432861,-500.0,9.794e-05,2]
[346581650,1735113432888,-3173.76,9.794e-05,2]
[346581651,1735113432910,-500.0,9.794e-05,2]
[346581652,1735113432933,-1788.86,9.794e-05,2]
[346581653,1735113432955,-1906.92,9.794e-05,2]
[346581654,1735113432977,-679.78,9.794e-05,2]
[346581655,1735113432999,-500.0,9.794e-05,2]
[346581656,1735113433021,-2042.56,9.794e-05,2]
[346581657,1735113433044,-714.76,9.794e-05,2]
[346581658,1735113433065,-500.0,9.794e-05,2]
[346581659,1735113433086,-645.57,9.794e-05,2]
[346581660,1735113433108,-500.0,9.794e-05,2]
[346581661,1735113433133,-2442.35,9.794e-05,2]
[346581662,1735113433154,-500.0,9.794e-05,2]
[346581663,1735113433178,-500.0,9.794e-05,2]
[346581664,1735113433205,-500.0,9.794e-05,2]
[346581665,1735113433227,-2973.04,9.794e-05,2]
[346581666,1735113433248,-500.0,9.794e-05,2]
[346581667,1735113433271,-500.0,9.794e-05,2]
[346581668,1735113433295,-1146.11,9.794e-05,2]
[346581669,1735113433318,-2214.43,9.794e-05,2]
[346581670,1735113433341,-2446.73,9.794e-05,2]
[346581671,1735113433365,-500.0,9.794e-05,2]
[346581672,1735113433387,-2414.27,9.794e-05,2]
[346581673,1735113433409,-500.0,9.794e-05,2]
[346581674,1735113433431,-500.0,9.794e-05,2]
[346581675,1735113433454,-500.0,9.794e-05,2]
[346581676,1735113433476,-1047.43,9.794e-05,2]
[346581677,1735113433498,-500.0,9.794e-05,2]
[346581678,1735113433520,-544.68,9.794e-05,2]
[346581679,1735113433543,-2341.42,9.794e-05,2]
[346581680,1735113433565,-500.0,9.794e-05,2]
[346581681,1735113433821,-2219.48,9.794e-05,2]
[346581682,1735113433844,-691.12,9.794e-05,2]
[346581683,1735113433866,-500.0,9.794e-05,2]
[346581684,1735113433888,-500.0,9.794e-05,2]
[346581685,1735113433909,-1896.96,9.794e-05,2]
[346581686,1735113433930,-500.0,9.794e-05,2]
[346581687,1735113433953,-243.83908186,9.794e-05,2]
[346581688,1735113433976,-500.0,9.794e-05,2]
[346581689,1735113433999,-516.84,9.794e-05,2]
[346581690,1735113434019,-500.0,9.794e-05,2]
[346581691,1735113434039,-500.0,9.794e-05,2]
[346581692,1735113434061,-500.0,9.794e-05,2]
[346581693,1735113434081,-863.36,9.794e-05,2]
[346581694,1735113434105,-500.0,9.794e-05,2]
[346581695,1735113434126,-3141.39,9.794e-05,2]
[346581696,1735113434149,-500.0,9.794e-05,2]
[346581697,1735113434172,-654.88,9.794e-05,2]
[346581698,1735113434194,-500.0,9.794e-05,2]
[346581699,1735113434216,-1681.18,9.794e-05,2]
[346581700,1735113434239,-500.0,9.794e-05,2]
[346581701,1735113434261,-500.0,9.794e-05,2]
[346581702,1735113434282,-500.0,9.794e-05,2]
[346581703,1735113434304,-746.22,9.794e-05,2]
[346581704,1735113434326,-1609.63,9.794e-05,2]
[346581705,1735113434348,-234.94633806,9.794e-05,2]
[346581706,1735113434371,-500.0,9.794e-05,2]
[346581707,1735113434392,-500.0,9.794e-05,2]
[346581708,1735113434413,-1522.4,9.794e-05,2]
[346581709,1735113434435,-500.0,9.794e-05,2]
[346581710,1735113434456,-500.0,9.794e-05,2]
[346581711,1735113434477,-501.40985999,9.794e-05,2]
[346581712,1735113434500,-941.93,9.794e-05,2]
[346581713,1735113434521,-500.0,9.794e-05,2]
[346581714,1735113434542,-1625.04,9.794e-05,2]
[346581715,1735113434562,-500.0,9.794e-05,2]
[346581716,1735113434583,-500.0,9.794e-05,2]
[346581717,1735113434604,-500.0,9.794e-05,2]
[346581718,1735113434625,-4384.8,9.794e-05,2]
[346581719,1735113434645,-671.85,9.794e-05,2]
[346581720,1735113434666,-899.88,9.794e-05,2]
[346581721,1735113434687,-500.0,9.794e-05,2]
[346581722,1735113434710,-575.19,9.794e-05,2]
[346581723,1735113434733,-500.0,9.794e-05,2]
[346581724,1735113434755,-500.0,9.794e-05,2]
[346581725,1735113434778,-502.37729575,9.794e-05,2]
[346581726,1735113434799,-500.0,9.794e-05,2]
[346581727,1735113434821,-500.0,9.794e-05,2]
[346581728,1735113434844,-1743.56,9.794e-05,2]
[346581729,1735113434866,-1439.3,9.794e-05,2]
[346581730,1735113434887,-505.55048184,9.794e-05,2]
[346581731,1735113434909,-500.0,9.794e-05,2]
[346581732,1735113434930,-500.0,9.794e-05,2]
[346581733,1735113434952,-500.0,9.794e-05,2]
[346581734,1735113434976,-500.0,9.794e-05,2]
[346581735,1735113434998,-500.0,9.794e-05,2]
[346581736,1735113435020,-1636.44,9.794e-05,2]
[346581737,1735113435041,-500.0,9.794e-05,2]
[346581738,1735113435068,-500.0,9.794e-05,2]
[346581739,1735113435091,-500.0,9.794e-05,2]
[346581740,1735113435115,-1230.16,9.794e-05,2]
[346581741,1735113435137,-2464.34,9.794e-05,2]
[346581742,1735113435159,-500.0,9.794e-05,2]
[346581743,1735113435180,-1827.53,9.794e-05,2]
[346581744,1735113435202,-500.0,9.794e-05,2]
[346581745,1735113435225,-500.0,9.794e-05,2]
[346581746,1735113435248,-534.84,9.794e-05,2]
[346581747,1735113435269,-500.0,9.794e-05,2]
[346581748,1735113435290,-3177.35,9.794e-05,2]
[346581749,1735113435313,-500.0,9.794e-05,2]
[346581750,1735113435334,-500.0,9.794e-05,2]
[346581751,1735113435357,-390.69775614,9.794e-05,2]
[346581752,1735113435382,-500.0,9.794e-05,2]
[346581753,1735113435408,-500.0,9.794e-05,2]
[346581754,1735113435430,-4303.01,9.794e-05,2]
[346581755,1735113435454,-855.45,9.794e-05,2]
[346581756,1735113435476,-500.0,9.794e-05,2]
[346581757,1735113435498,-503.03463768,9.794e-05,2]
[346581758,1735113435519,-500.0,9.794e-05,2]
[346581759,1735113435541,-500.0,9.794e-05,2]
[346581760,1735113435562,-500.0,9.794e-05,2]
[346581761,1735113435583,-725.3,9.794e-05,2]
[346581762,1735113435604,-500.0,9.794e-05,2]
[346581763,1735113435625,-972.09,9.794e-05,2]
[346581764,1735113435647,-500.0,9.794e-05,2]
[346581765,1735113435667,-500.0,9.794e-05,2]
[346581766,1735113435689,-1795.86,9.794e-05,2]
[346581767,1735113435712,-500.0,9.794e-05,2]
[346581768,1735113435736,-1413.89,9.794e-05,2]
[346581769,1735113435757,-500.0,9.794e-05,2]
[346581770,1735113435779,-500.0,9.794e-05,2]
[346581771,1735113435800,-500.0,9.794e-05,2]
[346581772,1735113435822,-500.0,9.794e-05,2]
[346581773,1735113435843,-1111.65,9.794e-05,2]
[346581774,1735113435864,-500.0,9.794e-05,2]
[346581775,1735113435886,-500.0,9.794e-05,2]
[346581776,1735113435907,-500.0,9.794e-05,2]
[346581777,1735113435929,-572.93450244,9.794e-05,2]
[346581778,1735113435951,-2260.37,9.794e-05,2]
[346581779,1735113435972,-2153.44,9.794e-05,2]
[346581780,1735113435993,-500.0,9.794e-05,2]
[346581781,1735113436013,-503.88149891,9.794e-05,2]
[346581782,1735113436034,-500.0,9.794e-05,2]
[346581783,1735113436055,-4053.67,9.794e-05,2]
[346581784,1735113436078,-503.71656874,9.794e-05,2]
[346581785,1735113436099,-500.0,9.794e-05,2]
[346581786,1735113436120,-500.0,9.794e-05,2]
[346581787,1735113436140,-3304.45,9.794e-05,2]
[346581788,1735113436162,-500.0,9.794e-05,2]
[346581789,1735113436182,-500.0,9.794e-05,2]
[346581790,1735113436203,-617.04594115,9.794e-05,2]
[346581791,1735113436226,-500.0,9.794e-05,2]
[346581792,1735113436247,-1758.16,9.794e-05,2]
[346581793,1735113436268,-500.0,9.794e-05,2]
[346581794,1735113436471,-500.0,9.794e-05,2]
[346581795,1735113436494,-4261.15,9.794e-05,2]
[346581796,1735113436516,-500.0,9.794e-05,2]
[346581797,1735113436537,-500.0,9.794e-05,2]
[346581798,1735113436558,-500.19141305,9.794e-05,2]
[346581799,1735113436579,-500.0,9.794e-05,2]
[346581800,1735113436600,-1899.75,9.794e-05,2]
[346581801,1735113436621,-3920.75,9.794e-05,2]
[346581802,1735113436643,-505.47386236,9.794e-05,2]
[346581803,1735113436664,-500.0,9.794e-05,2]
[346581804,1735113436686,-500.0,9.794e-05,2]
[346581805,1735113436709,-500.0,9.794e-05,2]
[346581806,1735113436735,-1293.96,9.794e-05,2]
[346581807,1735113436759,-992.78,9.794e-05,2]
[346581808,1735113436781,-500.0,9.794e-05,2]
[346581809,1735113436804,-500.0,9.794e-05,2]
[346581810,1735113436826,-1845.45,9.794e-05,2]
[346581811,1735113436848,-500.0,9.794e-05,2]
[346581812,1735113436870,-500.0,9.794e-05,2]
[346581813,1735113436892,-500.0,9.794e-05,2]
[346581814,1735113436915,-1559.44,9.794e-05,2]
[346581815,1735113436936,-500.0,9.794e-05,2]
[346581816,1735113436957,-500.0,9.794e-05,2]
[346581817,1735113436980,-778.03,9.794e-05,2]
[346581818,1735113437003,-500.0,9.794e-05,2]
[346581819,1735113437024,-500.0,9.794e-05,2]
[346581820,1735113437046,-964.66,9.794e-05,2]
[346581821,1735113437068,-500.0,9.794e-05,2]
[346581822,1735113437089,-500.0,9.794e-05,2]
[346581823,1735113437111,-1976.67,9.794e-05,2]
[346581824,1735113437132,-1158.04,9.794e-05,2]
[346581825,1735113437153,-726.97,9.794e-05,2]
[346581826,1735113437175,-500.0,9.794e-05,2]
[346581827,1735113437195,-2055.92,9.794e-05,2]
[346581828,1735113437217,-1875.85,9.794e-05,2]
[346581829,1735113437239,-2092.83,9.794e-05,2]
[346581830,1735113437260,-500.0,9.794e-05,2]
[346581831,1735113437281,-500.0,9.794e-05,2]
[346581832,1735113437302,-500.0,9.794e-05,2]
[346581833,1735113437324,-862.15,9.794e-05,2]
[346581834,1735113437346,-789.02,9.794e-05,2]
[346581835,1735113437368,-1169.45,9.794e-05,2]
[346581836,1735113437389,-500.0,9.794e-05,2]
[346581837,1735113437412,-500.0,9.794e-05,2]
[346581838,1735113437433,-500.0,9.794e-05,2]
[346581839,1735113437456,-500.0,9.794e-05,2]
[346581840,1735113437478,-151.0,9.794e-05,2]
[346581841,1735113437499,-500.0,9.794e-05,2]
[346581842,1735113437520,-151.0,9.794e-05,2]
[346581843,1735113437542,-151.0,9.794e-05,2]
[346581844,1735113437563,-151.0,9.794e-05,2]
[346581845,1735113437584,-151.0,9.794e-05,2]
[346581846,1735113437605,-500.0,9.794e-05,2]
[346581847,1735113437626,-1280.26,9.794e-05,2]
[346581848,1735113437647,-500.0,9.794e-05,2]
[346581849,1735113437668,-2772.1,9.794e-05,2]
[346581850,1735113437689,-500.0,9.794e-05,2]
[346581851,1735113437710,-978.2,9.794e-05,2]
[346581852,1735113437734,-2176.07,9.794e-05,2]
[346581853,1735113437755,-500.0,9.794e-05,2]
[346581854,1735113437779,-500.0,9.794e-05,2]
[346581855,1735113437800,-628.42,9.794e-05,2]
[346581856,1735113437821,-886.32,9.794e-05,2]
[346581857,1735113437848,-1811.0,9.794e-05,2]
[346581858,1735113437869,-500.0,9.794e-05,2]
[346581859,1735113437891,-500.0,9.794e-05,2]
[346581860,1735113437912,-1707.52,9.794e-05,2]
[346581861,1735113437933,-174.13559427,9.794e-05,2]
[346581862,1735113437955,-500.0,9.794e-05,2]
[346581863,1735113437977,-1721.6,9.794e-05,2]
[346581864,1735113438000,-500.0,9.794e-05,2]
[346581865,1735113438022,-500.0,9.794e-05,2]
[346581866,1735113438044,-500.0,9.794e-05,2]
[346581867,1735113438066,-500.0,9.794e-05,2]
[346581868,1735113438089,-826.79,9.794e-05,2]
[346581869,1735113438111,-500.0,9.794e-05,2]
[346581870,1735113438133,-500.0,9.794e-05,2]
[346581871,1735113438154,-500.0,9.794e-05,2]
[346581872,1735113438176,-500.0,9.794e-05,2]
[346581873,1735113438200,-1808.87,9.794e-05,2]
[346581874,1735113438222,-500.0,9.794e-05,2]
[346581875,1735113438246,-500.0,9.794e-05,2]
[346581876,1735113438268,-1052.95,9.794e-05,2]
[346581877,1735113438290,-596.84,9.794e-05,2]
[346581878,1735113438314,-374.1387796,9.794e-05,2]
[346581879,1735113438336,-500.0,9.794e-05,2]
[346581880,1735113438360,-642.83,9.795e-05,2]
[346581881,1735113438383,-2767.39,9.795e-05,2]
[346581882,1735113438405,-1455.96,9.795e-05,2]
[346581883,1735113438427,-2895.82,9.795e-05,2]
[346581884,1735113438450,-500.0,9.795e-05,2]
[346581885,1735113438472,-500.0,9.795e-05,2]
[346581886,1735113438495,-1598.02,9.795e-05,2]
[346581887,1735113438518,-500.0,9.795e-05,2]
[346581888,1735113438540,-2263.97,9.795e-05,2]
[346581889,1735113438562,-4039.6,9.795e-05,2]
[346581890,1735113438587,-1328.91,9.795e-05,2]
[346581891,1735113438610,-1954.8,9.795e-05,2]
[346581892,1735113438633,-1715.27,9.795e-05,2]
[346581893,1735113438656,-500.0,9.795e-05,2]
[346581894,1735113438678,-2429.57,9.795e-05,2]
[346581895,1735113438699,-4077.82,9.795e-05,2]
[346581896,1735113438724,-1248.76,9.795e-05,2]
[346581897,1735113438747,-3988.69,9.795e-05,2]
[346581898,1735113438770,-1419.87,9.795e-05,2]
[346581899,1735113438794,-4505.62,9.795e-05,2]
[346581900,1735113438820,-1975.16,9.795e-05,2]
[346581901,1735113438843,-844.13,9.795e-05,2]
[346581902,1735113439030,-2878.15,9.795e-05,2]
[346581903,1735113439053,-2544.79,9.795e-05,2]
[346581904,1735113439075,-500.0,9.795e-05,2]
[346581905,1735113439097,-1099.14,9.795e-05,2]
[346581906,1735113439119,-1694.79,9.795e-05,2]
[346581907,1735113439141,-500.0,9.795e-05,2]
[346581908,1735113439164,-4048.09,9.795e-05,2]
[346581909,1735113439186,-500.0,9.795e-05,2]
[346581910,1735113439208,-1544.04,9.796e-05,2]
[346581911,1735113439230,-500.0,9.796e-05,2]
[346581912,1735113439256,-500.0,9.796e-05,2]
[346581913,1735113439280,-519.91,9.796e-05,2]
[346581914,1735113439304,-500.0,9.796e-05,2]
[346581915,1735113439327,-500.0,9.796e-05,2]
[346581916,1735113439352,-500.0,9.796e-05,2]
[346581917,1735113439381,-504.66687058,9.796e-05,2]
[346581918,1735113439407,-500.0,9.796e-05,2]
[346581919,1735113439432,-500.0,9.796e-05,2]
[346581920,1735113439457,-500.0,9.796e-05,2]
[346581921,1735113439484,-500.0,9.796e-05,2]
[346581922,1735113439511,-500.0,9.796e-05,2]
[346581923,1735113439536,-875.3,9.796e-05,2]
[346581924,1735113439561,-1225.3,9.796e-05,2]
[346581925,1735113439585,-500.0,9.796e-05,2]
[346581926,1735113439608,-1141.1,9.796e-05,2]
[346581927,1735113439632,-500.0,9.796e-05,2]
[346581928,1735113439657,-798.67,9.796e-05,2]
[346581929,1735113439681,-1139.72,9.796e-05,2]
[346581930,1735113439705,-500.0,9.796e-05,2]
[346581931,1735113439731,-500.0,9.796e-05,2]
[346581932,1735113439755,-515.98,9.796e-05,2]
[346581933,1735113439778,-500.0,9.796e-05,2]
[346581934,1735113439801,-500.0,9.796e-05,2]
[346581935,1735113439823,-500.0,9.796e-05,2]
[346581936,1735113439847,-500.0,9.796e-05,2]
[346581937,1735113439870,-500.0,9.796e-05,2]
[346581938,1735113439895,-500.0,9.796e-05,2]
[346581939,1735113439918,-500.0,9.796e-05,2]
[346581940,1735113439942,-780.14,9.796e-05,2]
[346581941,1735113439967,-500.0,9.796e-05,2]
[346581942,1735113439991,-500.0,9.796e-05,2]
[346581943,1735113440014,-638.79,9.796e-05,2]
[346581944,1735113440038,-500.0,9.796e-05,2]
[346581945,1735113440060,-313.88689309,9.796e-05,2]
[346581946,1735113440084,-500.0,9.796e-05,2]
[346581947,1735113440108,-500.0,9.796e-05,2]
[346581948,1735113440131,-390.49318725,9.796e-05,2]
[346581949,1735113440168,-500.0,9.796e-05,2]
[346581950,1735113440192,-500.0,9.796e-05,2]
[346581951,1735113440217,-689.37,9.796e-05,2]
[346581952,1735113440243,-1555.89,9.796e-05,2]
[346581953,1735113440268,-500.0,9.796e-05,2]
[346581954,1735113440293,-500.0,9.796e-05,2]
[346581955,1735113440318,-500.0,9.796e-05,2]
[346581956,1735113440343,-500.0,9.796e-05,2]
[346581957,1735113440370,-571.79,9.796e-05,2]
[346581958,1735113440398,-500.0,9.796e-05,2]
[346581959,1735113440424,-513.3501058,9.796e-05,2]
[346581960,1735113440449,-1189.59,9.796e-05,2]
[346581961,1735113440479,-500.0,9.796e-05,2]
[346581962,1735113440504,-500.0,9.796e-05,2]
[346581963,1735113440530,-1160.34,9.796e-05,2]
[346581964,1735113440555,-500.0,9.796e-05,2]
[346581965,1735113440579,-500.0,9.796e-05,2]
[346581966,1735113440603,-502.5231316,9.796e-05,2]
[346581967,1735113440626,-500.0,9.796e-05,2]
[346581968,1735113440650,-150.0,9.796e-05,2]
[346581969,1735113440673,-500.0,9.796e-05,2]
[346581970,1735113440696,-583.49574558,9.796e-05,2]
[346581971,1735113440722,-5000.0,9.796e-05,2]
[346581972,1735113440747,-1164.19,9.796e-05,2]
[346581973,1735113440770,-500.0,9.796e-05,2]
[346581974,1735113440794,-500.0,9.796e-05,2]
[346581975,1735113440818,-994.64,9.796e-05,2]
[346581976,1735113440843,-772.27,9.796e-05,2]
[346581977,1735113440866,-500.0,9.796e-05,2]
[346581978,1735113440892,-500.0,9.796e-05,2]
[346581979,1735113440915,-1466.15,9.796e-05,2]
[346581980,1735113440939,-500.0,9.796e-05,2]
[346581981,1735113440963,-500.0,9.796e-05,2]
[346581982,1735113440991,-536.36,9.796e-05,2]
[346581983,1735113441015,-500.0,9.796e-05,2]
[346581984,1735113441038,-500.0,9.796e-05,2]
[346581985,1735113441061,-500.0,9.796e-05,2]
[346581986,1735113441084,-500.0,9.796e-05,2]
[346581987,1735113441109,-500.0,9.796e-05,2]
[346581988,1735113441132,-500.0,9.796e-05,2]
[346581989,1735113441156,-500.0,9.796e-05,2]
[346581990,1735113441184,-889.65,9.796e-05,2]
[346581991,1735113441209,-1444.14,9.796e-05,2]
[346581992,1735113441234,-500.0,9.796e-05,2]
[346581993,1735113441258,-500.0,9.796e-05,2]
[346581994,1735113441282,-1333.36,9.796e-05,2]
[346581995,1735113441309,-500.0,9.796e-05,2]
[346581996,1735113441333,-500.0,9.796e-05,2]
[346581997,1735113441361,-1921.3,9.796e-05,2]
[346581998,1735113441386,-500.0,9.796e-05,2]
[346581999,1735113441410,-500.0,9.796e-05,2]
[346582000,1735113441434,-597.66464248,9.796e-05,2]
[346582001,1735113441459,-500.0,9.796e-05,2]
[346582002,1735113441482,-500.0,9.796e-05,2]
[346582003,1735113441506,-2878.15,9.796e-05,2]
[346582004,1735113441530,-153.58102,9.796e-05,2]
[346582005,1735113441847,-500.0,9.797e-05,2]
[346582006,1735113441873,-2878.15,9.797e-05,2]
[346582007,1735113441895,-500.0,9.798e-05,2]
[346582008,1735113441919,-167.35,9.869e-05,2]
[346582009,1735113441943,-4048.09,9.999e-05,2]
[346582010,1735113441965,-4048.09,9.999e-05,2]
[346582011,1735113441991,-500.0,9.999e-05,2]
[346582012,1735113442017,-500.0,9.999e-05,2]
[346582013,1735113442041,-301803.92972,0.0001,2]
[346582014,1735113442064,-3000.0,0.0001,2]
[346582015,1735113442087,-3000.0,0.0001,2]
[346582016,1735113442109,-3000.0,0.0001,2]
[346582017,1735113442132,-3000.0,0.0001,2]
[346582018,1735113442154,-3000.0,0.0001,2]
[346582019,1735113442177,-3000.0,0.0001,2]
[346582020,1735113442201,-500.0,0.00010065,2]
[346582021,1735113442224,-3489.81,0.00010065,2]
[346582022,1735113442250,-612.39,0.00010066,2]
[346582023,1735113442273,-550.33,0.00010066,2]
[346582024,1735113442295,-1886.08,0.00010066,2]
[346582025,1735113442319,-910.24,0.00010066,2]
[346582026,1735113442342,-500.0,0.00010066,2]
[346582027,1735113442368,-528.15131532,0.00010066,2]
[346582028,1735113442391,-620.86,0.00010066,2]
[346582029,1735113442414,-500.0,0.00010066,2]
[346582030,1735113442437,-851.42,0.00010066,2]
[346582031,1735113442461,-1187.95,0.00010066,2]
[346582032,1735113442487,-500.0,0.00010066,2]
[346582033,1735113442513,-787.32,0.00010066,2]
[346582034,1735113442537,-1879.74,0.00010066,2]
[346582035,1735113442561,-1232.13,0.00010066,2]
[346582036,1735113442583,-1101.09,0.00010066,2]
[346582037,1735113442606,-1403.05,0.00010066,2]
[346582038,1735113442634,-549.26,0.00010066,2]
[346582039,1735113442658,-500.0,0.00010066,2]
[346582040,1735113442682,-721.39,0.00010066,2]
[346582041,1735113442705,-500.0,0.00010066,2]
[346582042,1735113442731,-1572.2,0.00010066,2]
[346582043,1735113442755,-1067.44,0.00010066,2]
[346582044,1735113442780,-2316.91,0.00010066,2]
[346582045,1735113442804,-12942.7,0.00010066,2]
[346582046,1735113442827,-580.87,0.00010066,2]
[346582047,1735113442851,-9280.82,0.00010066,2]
[346582048,1735113442875,-500.0,0.00010066,2]
[346582049,1735113442899,-824.17,0.00010066,2]
[346582050,1735113442923,-5247.74,0.00010066,2]
[346582051,1735113442947,-2500.07,0.00010066,2]
[346582052,1735113442972,-1258.24,0.00010066,2]
[346582053,1735113442998,-809.19,0.00010066,2]
[346582054,1735113443027,-1421.39,0.00010066,2]
[346582055,1735113443073,-1492.53,0.00010066,2]
[346582056,1735113443116,-557.13,0.00010066,2]
[346582057,1735113443163,-2350.84,0.00010066,2]
[346582058,1735113443208,-16581.82,0.00010066,2]
[346582059,1735113443253,-500.0,0.00010066,2]
[346582060,1735113443295,-7810.66,0.00010066,2]
[346582061,1735113443334,-1353.1,0.00010066,2]
[346582062,1735113443376,-2426.43,0.00010066,2]
[346582063,1735113443419,-20424.12,0.00010066,2]
[346582064,1735113443461,-2583.74,0.00010066,2]
[346582065,1735113443503,-805.32,0.00010066,2]
[346582066,1735113443543,-500.0,0.00010066,2]
[346582067,1735113443584,-1558.01,0.00010066,2]
[346582068,1735113443633,-3165.4,0.00010066,2]
[346582069,1735113443673,-5913.52,0.00010066,2]
[346582070,1735113443714,-601.36,0.00010066,2]
[346582071,1735113443754,-500.0,0.00010066,2]
[346582072,1735113443795,-500.0,0.00010066,2]
[346582073,1735113443837,-13633.68,0.00010066,2]
[346582074,1735113443878,-500.0,0.00010066,2]
[346582075,1735113443919,-4933.12,0.00010066,2]
[346582076,1735113443959,-777.85,0.00010066,2]
[346582077,1735113444000,-3504.47,0.00010066,2]
[346582078,1735113444039,-500.0,0.00010066,2]
[346582079,1735113444078,-552.07,0.00010066,2]
[346582080,1735113444117,-1271.33,0.00010066,2]
[346582081,1735113444156,-500.0,0.00010066,2]
[346582082,1735113444196,-4450.47,0.00010066,2]
[346582083,1735113444235,-500.0,0.00010066,2]
[346582084,1735113444274,-500.0,0.00010066,2]
[346582085,1735113444315,-500.0,0.00010066,2]
[346582086,1735113444355,-748.44,0.00010066,2]
[346582087,1735113444401,-500.0,0.00010066,2]
[346582088,1735113444443,-1757.68,0.00010066,2]
[346582089,1735113444485,-9633.21,0.00010066,2]
[346582090,1735113444525,-2469.702352,0.00010066,2]
[346582091,1735113444565,-1992.14,0.00010066,2]
[346582092,1735113444606,-500.0,0.00010066,2]
[346582093,1735113444648,-500.0,0.00010066,2]
[346582094,1735113444687,-500.0,0.00010066,2]
[346582095,1735113444733,-500.0,0.00010066,2]
[346582096,1735113444773,-1844.96,0.00010066,2]
[346582097,1735113444814,-2495.350711,0.00010066,2]
[346582098,1735113444854,-500.0,0.00010066,2]
[346582099,1735113444895,-500.0,0.00010066,2]
[346582100,1735113444935,-1311.07,0.00010066,2]
[346582101,1735113444976,-992.23,0.00010066,2]
[346582102,1735113445017,-1262.58,0.00010066,2]
[346582103,1735113445056,-3617.19,0.00010066,2]
[346582104,1735113445379,-856.41,0.00010066,2]
[346582105,1735113445419,-987.39,0.00010066,2]
[346582106,1735113445444,-3464.79,0.00010066,2]
[346582107,1735113445469,-2051.9,0.00010066,2]
[346582108,1735113445493,-500.0,0.00010066,2]
[346582109,1735113445516,-2245.75,0.00010066,2]
[346582110,1735113445540,-4048.09,0.00010066,2]
[346582111,1735113445564,-1049.17,0.00010066,2]
[346582112,1735113445587,-500.0,0.00010066,2]
[346582113,1735113445611,-3645.41,0.00010066,2]
[346582114,1735113445636,-1055.95,0.00010066,2]
[346582115,1735113445660,-723.22,0.00010066,2]
[346582116,1735113445685,-1187.35,0.00010066,2]
[346582117,1735113445711,-6999.94,0.00010066,2]
[346582118,1735113445737,-658.76,0.00010066,2]
[346582119,1735113445763,-2172.48,0.00010066,2]
[346582120,1735113445786,-2033.29,0.00010066,2]
[346582121,1735113445810,-2646.18,0.00010066,2]
[346582122,1735113445835,-4423.82,0.00010066,2]
[346582123,1735113445859,-524.55,0.00010066,2]
[346582124,1735113445883,-4001.2,0.00010066,2]
[346582125,1735113445907,-2607.53,0.00010066,2]
[346582126,1735113445930,-991.7,0.00010066,2]
[346582127,1735113445955,-3725.51,0.00010066,2]
[346582128,1735113445979,-1258.34,0.00010066,2]
[346582129,1735113446005,-1932.57,0.00010066,2]
[346582130,1735113446029,-17227.81,0.00010066,2]
[346582131,1735113446055,-1403.36,0.00010066,2]
[346582132,1735113446080,-12744.62,0.00010066,2]
[346582133,1735113446105,-657.72,0.00010066,2]
[346582134,1735113446130,-2313.07,0.00010066,2]
[346582135,1735113446155,-509.39,0.00010066,2]
[346582136,1735113446181,-4188.01,0.00010066,2]
[346582137,1735113446207,-943.76,0.00010066,2]
[346582138,1735113446231,-2767.77,0.00010066,2]
[346582139,1735113446256,-500.0,0.00010066,2]
[346582140,1735113446280,-7011.05,0.00010066,2]
[346582141,1735113446304,-2402.26,0.00010066,2]
[346582142,1735113446329,-1026.73,0.00010066,2]
[346582143,1735113446352,-20754.75,0.00010066,2]
[346582144,1735113446380,-1173.03,0.00010066,2]
[346582145,1735113446403,-4760.09,0.00010066,2]